bitfinex/quotes_BTCUSD_20240701
["timestamp","ask_amount","ask_price","bid_price","bid_amount"]
[1719820633318,0.66052392,63349.0,63348.0,0.47339353]
[1719820633319,1.43839625,63349.0,63348.0,0.47339353]
[1719820633518,1.45430019,63349.0,63348.0,0.47339353]
[1719820633748,1.47019444,63349.0,63348.0,0.47339353]
[1719820633977,1.47948267,63349.0,63348.0,0.47339353]
[1719820634884,1.78516767,63349.0,63348.0,0.47339353]
[1719820635133,1.83758087,63349.0,63348.0,0.47339353]
[1719820635531,1.75104044,63349.0,63348.0,0.47339353]
[1719820635945,1.47019444,63349.0,63348.0,0.47339353]
[1719820636784,1.45426282,63349.0,63348.0,0.47339353]
[1719820636985,1.47011906,63349.0,63348.0,0.47339353]
[1719820637210,1.45425064,63349.0,63348.0,0.47339353]
[1719820637410,1.46998809,63349.0,63348.0,0.47339353]
[1719820639812,1.47003759,63349.0,63348.0,0.47339353]
[1719820642944,1.41206055,63349.0,63348.0,0.47339353]
[1719820643137,1.47011047,63349.0,63348.0,0.47339353]
[1719820643468,1.52255104,63349.0,63348.0,0.47339353]
[1719820645436,1.50665747,63349.0,63348.0,0.47339353]
[1719820646225,1.46446418,63349.0,63348.0,0.47339353]
[1719820646421,1.50669707,63349.0,63348.0,0.47339353]
[1719820647556,1.4542565,63349.0,63348.0,0.47339353]
[1719820647761,1.50677893,63349.0,63348.0,0.47339353]
[1719820649362,1.39616698,63349.0,63348.0,0.47339353]
[1719820649552,1.50678961,63349.0,63348.0,0.47339353]
[1719820650008,1.51607784,63349.0,63348.0,0.47339353]
[1719820652516,1.46287024,63349.0,63348.0,0.47339353]
[1719820652723,1.51480392,63349.0,63348.0,0.47339353]
[1719820653724,1.50551569,63349.0,63348.0,0.47339353]
[1719820653922,1.51480392,63349.0,63348.0,0.47339353]
[1719820654946,1.65510392,63349.0,63348.0,0.47339353]
[1719820655851,1.64338111,63349.0,63348.0,0.47339353]
[1719820656069,1.65535548,63349.0,63348.0,0.47339353]
[1719820656267,1.65538653,63349.0,63348.0,0.47339353]
[1719820656465,1.5057983,63349.0,63348.0,0.47339353]
[1719820656664,1.51508653,63349.0,63348.0,0.47339353]
[1719820658869,1.40545521,63349.0,63348.0,0.47339353]
[1719820659075,1.51479341,63349.0,63348.0,0.47339353]
[1719820660054,1.65839341,63349.0,63348.0,0.47339353]
[1719820660812,2.09215172,63349.0,63348.0,0.47339353]
[1719820661054,2.14313417,63349.0,63348.0,0.47339353]
[1719820661470,2.02508942,63349.0,63348.0,0.47339353]
[1719820661887,1.55649019,63349.0,63348.0,0.47339353]
[1719820662101,1.39616698,63349.0,63348.0,0.47339353]
[1719820662312,1.5061595,63349.0,63348.0,0.47339353]
[1719820662537,1.50615759,63349.0,63348.0,0.47339353]
[1719820664127,0.71239661,63349.0,63348.0,0.5632053]
[1719820664339,0.66020298,63349.0,63348.0,0.6254053]
[1719820664533,0.18663698,63349.0,63348.0,0.6254053]
[1719820664737,0.08663698,63349.0,63348.0,0.6254053]
[1719820665131,0.07102954,63349.0,63348.0,0.6254053]
[1719820665388,0.086664,63349.0,63348.0,0.6254053]
[1719820665611,0.072664,63349.0,63348.0,0.6254053]
[1719820666026,0.086664,63349.0,63348.0,0.6254053]
[1719820666229,0.072664,63349.0,63348.0,0.6254053]
[1719820666613,0.072664,63349.0,63348.0,0.7832633]
[1719820666853,0.086664,63349.0,63348.0,0.7832633]
[1719820667230,0.05648324,63349.0,63348.0,0.7832633]
[1719820668279,0.02884,63349.0,63348.0,0.7832633]
[1719820668485,0.05699533,63349.0,63348.0,0.7832633]
[1719820669215,0.05699533,63349.0,63348.0,1.0989793]
[1719820671380,0.05711091,63349.0,63348.0,1.0989793]
[1719820673440,0.05711091,63349.0,63348.0,1.4146953]
[1719820673847,0.05589121,63349.0,63348.0,1.4146953]
[1719820674048,0.04106686,63349.0,63348.0,1.4881953]
[1719820674195,0.05589481,63349.0,63348.0,1.4881953]
[1719820674605,0.04107667,63349.0,63348.0,1.4881953]
[1719820674808,0.05566265,63349.0,63348.0,1.4881953]
[1719820675024,0.04342608,63349.0,63348.0,1.4146953]
[1719820675200,0.04342608,63349.0,63348.0,1.4881953]
[1719820675201,0.05566281,63349.0,63348.0,1.4881953]
[1719820675603,0.04166281,63349.0,63348.0,1.4881953]
[1719820676553,0.04866281,63349.0,63348.0,1.4881953]
[1719820677348,0.04166281,63349.0,63348.0,1.4881953]
[1719820677551,0.03566281,63349.0,63348.0,1.4881953]
[1719820677756,0.03560928,63349.0,63348.0,1.4881953]
[1719820677959,0.03460928,63349.0,63348.0,1.4881953]
[1719820678161,0.03460928,63349.0,63348.0,1.1724793]
[1719820678519,0.02760928,63349.0,63348.0,1.1724793]
[1719820678719,0.03460928,63349.0,63348.0,1.0989793]
[1719820678952,0.03460928,63349.0,63348.0,1.1724793]
[1719820679326,0.04160928,63349.0,63348.0,1.1724793]
[1719820679647,0.03460928,63349.0,63348.0,1.1724793]
[1719820680028,0.04260928,63349.0,63348.0,1.1724793]
[1719820680504,0.20046428,63349.0,63348.0,0.47339353]
[1719820680687,0.01584,63349.0,63348.0,0.4841053]
[1719820680926,0.04232759,63349.0,63348.0,0.4841053]
[1719820683063,0.04232759,63349.0,63348.0,0.6419633]
[1719820683260,0.02975307,63349.0,63348.0,0.6419633]
[1719820683468,0.04191151,63349.0,63348.0,0.6419633]
[1719820684957,0.04191151,63349.0,63348.0,0.9576793]
[1719820686565,0.01584,63349.0,63348.0,0.9576793]
[1719820686765,0.04284834,63349.0,63348.0,0.9576793]
[1719820689607,0.04317933,63349.0,63348.0,0.9576793]
[1719820689801,0.04317933,63349.0,63348.0,1.0311793]
[1719820690027,0.04317933,63349.0,63348.0,0.7154633]
[1719820691115,0.04317933,63349.0,63348.0,0.5576053]
[1719820691338,0.04317933,63349.0,63348.0,0.4841053]
[1719820691538,0.30656511,63349.0,63348.0,0.5576053]
[1719820691742,0.04317933,63349.0,63348.0,0.5576053]
[1719820692701,0.02811479,63349.0,63348.0,0.5576053]
[1719820693000,0.07355618,63349.0,63348.0,0.5576053]
[1719820693204,0.07355857,63349.0,63348.0,0.5576053]
[1719820693791,0.07365009,63349.0,63348.0,0.5576053]
[1719820694978,0.23150509,63349.0,63348.0,0.54689353]
[1719820695745,0.23150509,63349.0,63348.0,0.4841053]
[1719820695942,0.23132293,63349.0,63348.0,0.4841053]
[1719820696145,0.23132293,63349.0,63348.0,0.5576053]
[1719820699120,0.18869384,63349.0,63348.0,0.5576053]
[1719820699323,0.23140255,63349.0,63348.0,0.5576053]
[1719820699907,0.37070255,63349.0,63348.0,0.54689353]
[1719820700186,0.37070255,63349.0,63348.0,0.5576053]
[1719820702166,0.30920255,63349.0,63348.0,0.5576053]
[1719820702363,0.21924325,63349.0,63348.0,0.5576053]
[1719820702569,0.23153049,63349.0,63348.0,0.5576053]
[1719820703161,0.07367549,63349.0,63348.0,0.5576053]
[1719820704891,0.23153049,63349.0,63348.0,0.5576053]
[1719820705475,0.18879878,63349.0,63348.0,0.5576053]
[1719820705720,0.23162613,63349.0,63348.0,0.5576053]
[1719820708827,0.18887065,63349.0,63348.0,0.5576053]
[1719820709103,0.23164246,63349.0,63348.0,0.5576053]
[1719820709827,0.23164246,63349.0,63348.0,0.54689353]
[1719820710331,0.23164246,63349.0,63348.0,0.5576053]
[1719820712039,0.2315116,63349.0,63348.0,0.5576053]
[1719820714889,0.6254226,63349.0,63348.0,0.54689353]
[1719820715123,0.567606,63349.0,63348.0,0.54689353]
[1719820715378,0.62533802,63349.0,63348.0,0.4841053]
[1719820718351,0.58260104,63349.0,63348.0,0.4841053]
[1719820718546,0.62534514,63349.0,63348.0,0.4841053]
[1719820719134,0.62534514,63349.0,63348.0,0.47339353]
[1719820719282,0.62534514,63349.0,63348.0,0.4841053]
[1719820721596,0.59806578,63349.0,63348.0,0.4841053]
[1719820721800,0.62547811,63349.0,63348.0,0.4841053]
[1719820725008,0.62546772,63349.0,63348.0,0.47339353]
[1719820728077,0.567606,63349.0,63348.0,0.47339353]
[1719820728323,0.62551964,63349.0,63348.0,0.47339353]
[1719820728670,0.61037663,63349.0,63348.0,0.47339353]
[1719820728867,0.62551976,63349.0,63348.0,0.47339353]
[1719820729307,0.62551976,63349.0,63348.0,0.4841053]
[1719820729656,0.30980876,63349.0,63348.0,0.5576053]
[1719820729859,0.23160876,63349.0,63348.0,0.5576053]
[1719820731250,0.04626684,63349.0,63348.0,0.5576053]
[1719820731557,0.08817607,63349.0,63348.0,0.5576053]
[1719820734376,0.08840485,63349.0,63348.0,0.5576053]
[1719820734615,0.08840485,63349.0,63348.0,0.47339353]
[1719820734845,0.08840485,63349.0,63348.0,0.5576053]
[1719820737589,0.08836342,63349.0,63348.0,0.5576053]
[1719820738226,0.70292942,63349.0,63348.0,0.47339353]
[1719820738433,1.01864042,63349.0,63348.0,0.47339353]
[1719820738668,1.34363965,63349.0,63348.0,0.47339353]
[1719820738898,1.39521978,63349.0,63348.0,0.47339353]
[1719820740006,1.38821978,63349.0,63348.0,0.47339353]
[1719820740201,1.38021978,63349.0,63348.0,0.47339353]
[1719820740514,1.56771978,63349.0,63348.0,0.47339353]
[1719820740705,1.89799664,63349.0,63348.0,0.47339353]
[1719820741751,1.91799664,63349.0,63348.0,0.47339353]
[1719820742169,1.88399664,63349.0,63348.0,0.47339353]
[1719820742433,1.91799664,63349.0,63348.0,0.47339353]
[1719820742620,1.88399664,63349.0,63348.0,0.47339353]
[1719820743189,1.78814687,63349.0,63348.0,0.47339353]
[1719820743424,1.89995981,63349.0,63348.0,0.47339353]
[1719820743677,1.89996081,63349.0,63348.0,0.47339353]
[1719820745498,2.0178006,63349.0,63348.0,0.47339353]
[1719820745852,1.9443006,63349.0,63348.0,0.47339353]
[1719820746059,1.51074981,63349.0,63348.0,0.47339353]
[1719820746280,1.51080614,63349.0,63348.0,0.47339353]
[1719820747753,1.50151791,63349.0,63348.0,0.47339353]
[1719820747910,1.51080614,63349.0,63348.0,0.47339353]
[1719820748114,1.50151791,63349.0,63348.0,0.47339353]
[1719820748314,0.57639085,63349.0,63348.0,0.54689353]
[1719820748893,0.54580808,63349.0,63348.0,0.5576053]
[1719820749090,0.21609708,63349.0,63348.0,0.5576053]
[1719820749312,0.21609708,63349.0,63348.0,0.54689353]
[1719820749523,0.22869325,63349.0,63348.0,0.54689353]
[1719820749969,0.21469325,63349.0,63348.0,0.54689353]
[1719820750181,0.21469325,63349.0,63348.0,0.5576053]
[1719820750386,0.32869325,63349.0,63348.0,0.5576053]
[1719820750588,0.31469325,63349.0,63348.0,0.5576053]
[1719820751005,0.32769325,63349.0,63348.0,0.5576053]
[1719820751426,0.16983825,63349.0,63348.0,0.5576053]
[1719820751849,0.15583825,63349.0,63348.0,0.5576053]
[1719820752069,0.14101861,63349.0,63348.0,0.5576053]
[1719820752521,0.15501861,63349.0,63348.0,0.5576053]
[1719820752717,0.15494918,63349.0,63348.0,0.5576053]
[1719820752890,0.15494919,63349.0,63348.0,0.5576053]
[1719820753220,0.14094919,63349.0,63348.0,0.5576053]
[1719820753444,0.15194919,63349.0,63348.0,0.5576053]
[1719820753651,0.13894919,63349.0,63348.0,0.5576053]
[1719820754043,0.15192145,63349.0,63348.0,0.5576053]
[1719820754544,0.30977645,63349.0,63348.0,0.54689353]
[1719820754759,0.62548745,63349.0,63348.0,0.47339353]
[1719820754961,0.64506682,63349.0,63348.0,0.47339353]
[1719820755158,0.65606682,63349.0,63348.0,0.47339353]
[1719820755950,0.64525268,63349.0,63348.0,0.47339353]
[1719820756146,0.65925268,63349.0,63348.0,0.47339353]
[1719820756326,0.64625268,63349.0,63348.0,0.47339353]
[1719820756930,0.63225268,63349.0,63348.0,0.47339353]
[1719820757353,0.64625268,63349.0,63348.0,0.47339353]
[1719820757921,0.72645268,63349.0,63348.0,0.47339353]
[1719820758052,0.74045268,63349.0,63348.0,0.47339353]
[1719820759057,0.69719377,63349.0,63348.0,0.47339353]
[1719820759258,0.80528588,63349.0,63348.0,0.47339353]
[1719820759692,1.12099688,63349.0,63348.0,0.47339353]
[1719820760441,1.13028511,63349.0,63348.0,0.47339353]
[1719820760650,1.43670788,63349.0,63348.0,0.47339353]
[1719820760845,1.44599611,63349.0,63348.0,0.47339353]
[1719820761280,1.43199611,63349.0,63348.0,0.47339353]
[1719820761764,1.42270788,63349.0,63348.0,0.47339353]
[1719820762086,1.40870788,63349.0,63348.0,0.47339353]
[1719820762287,1.40904721,63349.0,63348.0,0.47339353]
[1719820762497,1.42304721,63349.0,63348.0,0.47339353]
[1719820762904,1.43704721,63349.0,63348.0,0.47339353]
[1719820765410,1.42218712,63349.0,63348.0,0.47339353]
[1719820765700,1.43696453,63349.0,63348.0,0.47339353]
[1719820766777,1.44625276,63349.0,63348.0,0.47339353]
[1719820767973,1.43696453,63349.0,63348.0,0.47339353]
[1719820768583,1.43646903,63349.0,63348.0,0.47339353]
[1719820770787,1.44575726,63349.0,63348.0,0.47339353]
[1719820771471,1.43646903,63349.0,63348.0,0.47339353]
[1719820771676,1.44438205,63349.0,63348.0,0.47339353]
[1719820771906,1.48732073,63349.0,63348.0,0.47339353]
[1719820772127,1.43644676,63349.0,63348.0,0.47339353]
[1719820772335,1.4873203,63349.0,63348.0,0.47339353]
[1719820772552,1.43644676,63349.0,63348.0,0.47339353]
[1719820773250,1.29114676,63349.0,63348.0,0.47339353]
[1719820773474,1.29114676,63349.0,63348.0,0.61709353]
[1719820773475,0.65972476,63349.0,63348.0,0.61709353]
[1719820773699,0.65972476,63349.0,63348.0,0.6278053]
[1719820774231,0.65972476,63349.0,63348.0,0.61709353]
[1719820774467,0.65972476,63349.0,63348.0,0.6278053]
[1719820774674,0.65972476,63349.0,63348.0,0.55159353]
[1719820774877,0.65972476,63349.0,63348.0,0.47339353]
[1719820775127,0.65874262,63349.0,63348.0,0.47339353]
[1719820776134,0.97445362,63349.0,63348.0,0.47339353]
[1719820777951,0.97445362,63349.0,63348.0,0.44339353]
[1719820778151,0.97451562,63349.0,63348.0,0.44339353]
[1719820779718,1.03911562,63349.0,63348.0,0.44339353]
[1719820781367,0.982717,63349.0,63348.0,0.44339353]
[1719820781503,1.03931106,63349.0,63348.0,0.44339353]
[1719820781708,0.982717,63349.0,63348.0,0.44339353]
[1719820781908,1.0392788,63349.0,63348.0,0.44339353]
[1719820784224,1.02553868,63349.0,63348.0,0.44339353]
[1719820784546,1.0393091,63349.0,63348.0,0.44339353]
[1719820786373,1.08977572,63349.0,63348.0,0.44339353]
[1719820787528,1.40548672,63349.0,63348.0,0.44339353]
[1719820787704,1.40583914,63349.0,63348.0,0.44339353]
[1719820789253,1.35525893,63349.0,63348.0,0.44339353]
[1719820789533,1.4058548,63349.0,63348.0,0.44339353]
[1719820790357,1.35525893,63349.0,63348.0,0.44339353]
[1719820790865,0.65909866,63349.0,63348.0,0.44339353]
[1719820791077,0.65909866,63349.0,63348.0,0.58809353]
[1719820791221,0.65909866,63349.0,63348.0,0.44339353]
[1719820791827,0.97480966,63349.0,63348.0,0.44339353]
[1719820793923,0.93190327,63349.0,63348.0,0.44339353]
[1719820794062,0.97487082,63349.0,63348.0,0.44339353]
[1719820794246,0.918117,63349.0,63348.0,0.4541053]
[1719820794450,0.97531241,63349.0,63348.0,0.4541053]
[1719820796238,0.97531241,63349.0,63348.0,0.44339353]
[1719820796463,0.97531241,63349.0,63348.0,0.4541053]
[1719820796863,0.918117,63349.0,63348.0,0.4541053]
[1719820797064,0.65960708,63349.0,63348.0,0.4541053]
[1719820798290,0.34389608,63349.0,63348.0,0.4541053]
[1719820799893,0.18604108,63349.0,63348.0,0.4541053]
[1719820800104,0.1860008,63349.0,63348.0,0.4541053]
[1719820800326,0.1860008,63349.0,63348.0,1.2433953]
[1719820800327,0.0860008,63349.0,63348.0,1.2433953]
[1719820800538,0.0860008,63349.0,63348.0,0.5950053]
[1719820800757,0.2438558,63349.0,63348.0,0.58429353]
[1719820800967,0.5595668,63349.0,63348.0,0.44339353]
[1719820801374,0.5455668,63349.0,63348.0,0.44339353]
[1719820801578,0.8612778,63349.0,63348.0,0.44339353]
[1719820802233,0.93495989,63349.0,63348.0,0.44339353]
[1719820802461,0.92095989,63349.0,63348.0,0.44339353]
[1719820802660,1.25506678,63349.0,63348.0,0.44339353]
[1719820802903,1.33320683,63349.0,63348.0,0.44339353]
[1719820803067,1.23630683,63349.0,63348.0,0.44339353]
[1719820803253,1.22230683,63349.0,63348.0,0.44339353]
[1719820803455,1.31340683,63349.0,63348.0,0.44339353]
[1719820803653,1.39250683,63349.0,63348.0,0.44339353]
[1719820804111,1.37850683,63349.0,63348.0,0.44339353]
[1719820804622,1.39250683,63349.0,63348.0,0.44339353]
[1719820804837,1.37850683,63349.0,63348.0,0.44339353]
[1719820805048,1.39250683,63349.0,63348.0,0.44339353]
[1719820805691,1.28531623,63349.0,63348.0,0.44339353]
[1719820805917,1.39334828,63349.0,63348.0,0.44339353]
[1719820806352,1.38406005,63349.0,63348.0,0.44339353]
[1719820806602,1.39334828,63349.0,63348.0,0.44339353]
[1719820806804,1.38406005,63349.0,63348.0,0.44339353]
[1719820807352,1.33330193,63349.0,63348.0,0.44339353]
[1719820807558,1.34259016,63349.0,63348.0,0.44339353]
[1719820807997,1.39341377,63349.0,63348.0,0.44339353]
[1719820808856,1.28531623,63349.0,63348.0,0.44339353]
[1719820809060,1.34293046,63349.0,63348.0,0.44339353]
[1719820809289,1.39397539,63349.0,63348.0,0.44339353]
[1719820809499,1.39397673,63349.0,63348.0,0.44339353]
[1719820809698,1.3846885,63349.0,63348.0,0.44339353]
[1719820809908,1.39397673,63349.0,63348.0,0.44339353]
[1719820811431,1.78318773,63349.0,63348.0,0.44339353]
[1719820811651,1.93463079,63349.0,63348.0,0.44339353]
[1719820811854,1.77452723,63349.0,63348.0,0.44339353]
[1719820812061,1.93450738,63349.0,63348.0,0.44339353]
[1719820812481,1.86100738,63349.0,63348.0,0.44339353]
[1719820812892,1.84700738,63349.0,63348.0,0.44339353]
[1719820813227,1.83300738,63349.0,63348.0,0.44339353]
[1719820813433,1.96496165,63349.0,63348.0,0.44339353]
[1719820813637,1.84700738,63349.0,63348.0,0.44339353]
[1719820813853,1.86100738,63349.0,63348.0,0.44339353]
[1719820814269,1.86727909,63349.0,63348.0,0.44339353]
[1719820814446,1.88212772,63349.0,63348.0,0.44339353]
[1719820814879,1.86812772,63349.0,63348.0,0.44339353]
[1719820815056,1.8769788,63349.0,63348.0,0.44339353]
[1719820815207,2.03248897,63349.0,63348.0,0.44339353]
[1719820815409,1.8909788,63349.0,63348.0,0.44339353]
[1719820816055,1.8769788,63349.0,63348.0,0.44339353]
[1719820816202,1.8709788,63349.0,63348.0,0.44339353]
[1719820816399,1.8849788,63349.0,63348.0,0.44339353]
[1719820816603,1.8709788,63349.0,63348.0,0.44339353]
[1719820816808,1.8569788,63349.0,63348.0,0.44339353]
[1719820817223,1.8709788,63349.0,63348.0,0.44339353]
[1719820818126,1.81895708,63349.0,63348.0,0.44339353]
[1719820818336,1.88613988,63349.0,63348.0,0.44339353]
[1719820818745,1.6653029,63349.0,63348.0,0.42959353]
[1719820818917,1.54742888,63349.0,63348.0,0.42959353]
[1719820819702,1.49589659,63349.0,63348.0,0.42959353]
[1719820820662,1.35369659,63349.0,63348.0,0.42959353]
[1719820821167,1.28647544,63349.0,63348.0,0.42959353]
[1719820821368,1.34440151,63349.0,63348.0,0.42959353]
[1719820822021,1.35368974,63349.0,63348.0,0.42959353]
[1719820824506,1.35363661,63349.0,63348.0,0.42959353]
[1719820825123,1.48482935,63349.0,63348.0,0.42959353]
[1719820825291,1.54492935,63349.0,63348.0,0.42959353]
[1719820827205,1.49343661,63349.0,63348.0,0.42959353]
[1719820827448,1.54494152,63349.0,63348.0,0.42959353]
[1719820827648,1.54469004,63349.0,63348.0,0.42959353]
[1719820827953,1.44141841,63349.0,63348.0,0.42959353]
[1719820828178,1.54461414,63349.0,63348.0,0.42959353]
[1719820829212,1.66249085,63349.0,63348.0,0.42959353]
[1719820830258,1.54461414,63349.0,63348.0,0.42959353]
[1719820830455,1.44977053,63349.0,63348.0,0.42959353]
[1719820830670,1.54452226,63349.0,63348.0,0.42959353]
[1719820833714,1.38291623,63349.0,63348.0,0.42959353]
[1719820833885,1.54621101,63349.0,63348.0,0.42959353]
[1719820836730,1.53035634,63349.0,63348.0,0.42959353]
[1719820836990,1.54640227,63349.0,63348.0,0.42959353]
[1719820837419,1.66427647,63349.0,63348.0,0.42959353]
[1719820838102,1.54640227,63349.0,63348.0,0.42959353]
[1719820838599,1.53711404,63349.0,63348.0,0.42959353]
[1719820838843,1.54640227,63349.0,63348.0,0.42959353]
[1719820839987,1.54652181,63349.0,63348.0,0.42959353]
[1719820842759,1.59979117,63349.0,63348.0,0.42959353]
[1719820842979,1.55411961,63349.0,63348.0,0.42959353]
[1719820843190,1.71748218,63349.0,63348.0,0.42959353]
[1719820843437,1.71716318,63349.0,63348.0,0.42959353]
[1719820843683,2.00844016,63349.0,63348.0,0.42959353]
[1719820843899,2.26769142,63349.0,63348.0,0.42959353]
[1719820844123,2.12621113,63349.0,63348.0,0.42959353]
[1719820844826,2.24771561,63349.0,63348.0,0.42959353]
[1719820845079,2.26771561,63349.0,63348.0,0.42959353]
[1719820845302,2.10621113,63349.0,63348.0,0.42959353]
[1719820845533,2.24772433,63349.0,63348.0,0.42959353]
[1719820845996,2.10603901,63349.0,63348.0,0.42959353]
[1719820846232,2.10612094,63349.0,63348.0,0.42959353]
[1719820847773,2.24763487,63349.0,63348.0,0.42959353]
[1719820847999,2.10612094,63349.0,63348.0,0.42959353]
[1719820848826,2.0113826,63349.0,63348.0,0.42959353]
[1719820849260,1.91260224,63349.0,63348.0,0.42959353]
[1719820849462,2.15392123,63349.0,63348.0,0.42959353]
[1719820849821,2.10751068,63349.0,63348.0,0.42959353]
[1719820850462,2.02472245,63349.0,63348.0,0.42959353]
[1719820850664,1.54621145,63349.0,63348.0,0.42959353]
[1719820850862,1.0837922,63349.0,63348.0,0.42959353]
[1719820851065,1.03052284,63349.0,63348.0,0.42959353]
[1719820852405,0.71481184,63349.0,63348.0,0.42959353]
[1719820852625,0.66200414,63349.0,63348.0,0.50479353]
[1719820852790,0.56200414,63349.0,63348.0,0.50479353]
[1719820852996,0.08843814,63349.0,63348.0,0.5770053]
[1719820853196,0.05763643,63349.0,63348.0,1.4397953]
[1719820853398,0.04363643,63349.0,63348.0,1.4397953]
[1719820853577,0.02749967,63349.0,63348.0,1.4397953]
[1719820853770,0.04149967,63349.0,63348.0,1.4397953]
[1719820854005,0.05204223,63349.0,63348.0,1.4397953]
[1719820854226,0.03804223,63349.0,63348.0,1.4397953]
[1719820854426,0.03804223,63349.0,63348.0,1.1240793]
[1719820854427,0.04149967,63349.0,63348.0,1.1240793]
[1719820854602,0.04149967,63349.0,63348.0,1.0505793]
[1719820854802,0.05278654,63349.0,63348.0,1.1240793]
[1719820855227,0.03878654,63349.0,63348.0,1.1240793]
[1719820855581,0.05248629,63349.0,63348.0,1.1240793]
[1719820855791,0.04149967,63349.0,63348.0,1.1240793]
[1719820856011,0.01348298,63349.0,63348.0,1.0505793]
[1719820856217,0.01348298,63349.0,63348.0,1.7555113]
[1719820856426,0.01648298,63349.0,63348.0,1.7555113]
[1719820857042,0.01848298,63349.0,63348.0,1.7555113]
[1719820857941,0.01548298,63349.0,63348.0,1.7555113]
[1719820858148,0.01548298,63349.0,63348.0,1.0505793]
[1719820858360,0.01348298,63349.0,63348.0,1.1240793]
[1719820858591,0.00084,63349.0,63348.0,1.10530388]
[1719820858795,0.00184,63349.0,63348.0,1.10530388]
[1719820859218,0.00084,63349.0,63348.0,1.10530388]
[1719820859429,0.01445883,63349.0,63348.0,1.10530388]
[1719820859643,0.02469734,63349.0,63348.0,0.54751811]
[1719820859897,0.02469734,63349.0,63348.0,0.55822988]
[1719820859898,0.18555234,63349.0,63348.0,0.55822988]
[1719820860107,0.18255234,63349.0,63348.0,0.47231811]
[1719820860307,0.18255234,63349.0,63348.0,0.41081811]
[1719820860308,0.81397434,63349.0,63348.0,0.41081811]
[1719820860508,0.84767809,63349.0,63348.0,0.41081811]
[1719820861107,0.85640035,63349.0,63348.0,0.41081811]
[1719820861306,0.85340035,63349.0,63348.0,0.41081811]
[1719820861513,0.85511212,63349.0,63348.0,0.41081811]
[1719820862069,0.85411212,63349.0,63348.0,0.41081811]
[1719820862503,0.86311212,63349.0,63348.0,0.41081811]
[1719820862657,0.83244179,63349.0,63348.0,0.41081811]
[1719820863957,0.82270993,63349.0,63348.0,0.41081811]
[1719820864145,0.83314908,63349.0,63348.0,0.41081811]
[1719820864535,1.15814831,63349.0,63348.0,0.41081811]
[1719820864701,1.33188672,63349.0,63348.0,0.41081811]
[1719820864923,1.43188672,63349.0,63348.0,0.41081811]
[1719820865356,1.42259849,63349.0,63348.0,0.41081811]
[1719820865565,1.43188672,63349.0,63348.0,0.41081811]
[1719820865741,1.42288672,63349.0,63348.0,0.41081811]
[1719820866151,1.42588672,63349.0,63348.0,0.41081811]
[1719820866363,1.47364336,63349.0,63348.0,0.41081811]
[1719820866974,1.46435513,63349.0,63348.0,0.41081811]
[1719820867199,1.46503661,63349.0,63348.0,0.41081811]
[1719820867576,1.46101537,63349.0,63348.0,0.41081811]
[1719820867798,1.47501537,63349.0,63348.0,0.41081811]
[1719820867979,1.48901537,63349.0,63348.0,0.41081811]
[1719820868171,1.47501537,63349.0,63348.0,0.41081811]
[1719820868578,1.46101537,63349.0,63348.0,0.41081811]
[1719820868784,1.47501537,63349.0,63348.0,0.41081811]
[1719820869660,1.80472637,63349.0,63348.0,0.41081811]
[1719820869882,1.79072637,63349.0,63348.0,0.41081811]
[1719820870089,1.78151212,63349.0,63348.0,0.41081811]
[1719820870292,1.70182723,63349.0,63348.0,0.41081811]
[1719820870499,1.80479769,63349.0,63348.0,0.41081811]
[1719820873440,1.74728066,63349.0,63348.0,0.41081811]
[1719820873673,1.79099702,63349.0,63348.0,0.41081811]
[1719820873881,1.80499702,63349.0,63348.0,0.41081811]
[1719820874294,1.74745589,63349.0,63348.0,0.41081811]
[1719820874520,2.10695807,63349.0,63348.0,0.41081811]
[1719820874756,2.18153332,63349.0,63348.0,0.41081811]
[1719820875047,2.20153332,63349.0,63348.0,0.41081811]
[1719820875277,2.21553332,63349.0,63348.0,0.41081811]
[1719820876887,2.16722551,63349.0,63348.0,0.41081811]
[1719820877122,2.21376193,63349.0,63348.0,0.41081811]
[1719820878070,2.19376193,63349.0,63348.0,0.41081811]
[1719820878311,2.21376193,63349.0,63348.0,0.41081811]
[1719820879707,2.39796193,63349.0,63348.0,0.41081811]
[1719820879912,2.59796193,63349.0,63348.0,0.41081811]
[1719820880146,2.59646037,63349.0,63348.0,0.41081811]
[1719820880380,2.71217137,63349.0,63348.0,0.41081811]
[1719820880614,2.56044923,63349.0,63348.0,0.41081811]
[1719820880845,2.71143181,63349.0,63348.0,0.41081811]
[1719820881392,2.91143181,63349.0,63348.0,0.41081811]
[1719820882039,2.71143181,63349.0,63348.0,0.41081811]
[1719820883033,2.65509506,63349.0,63348.0,0.41081811]
[1719820883242,2.71125348,63349.0,63348.0,0.41081811]
[1719820884303,2.73005462,63349.0,63348.0,0.41081811]
[1719820884509,2.71125348,63349.0,63348.0,0.41081811]
[1719820884970,2.82895218,63349.0,63348.0,0.41081811]
[1719820885242,2.71125348,63349.0,63348.0,0.41081811]
[1719820885723,2.82895633,63349.0,63348.0,0.41081811]
[1719820886164,2.71125348,63349.0,63348.0,0.41081811]
[1719820886376,2.62442075,63349.0,63348.0,0.41081811]
[1719820886595,2.71127619,63349.0,63348.0,0.41081811]
[1719820887062,2.82896534,63349.0,63348.0,0.41081811]
[1719820887969,2.71846534,63349.0,63348.0,0.41081811]
[1719820888457,2.71846534,63349.0,63348.0,0.40981811]
[1719820888656,2.64730398,63349.0,63348.0,0.40981811]
[1719820889535,2.50634009,63349.0,63348.0,0.40981811]
[1719820889746,2.64781107,63349.0,63348.0,0.40981811]
[1719820890442,2.84781107,63349.0,63348.0,0.40981811]
[1719820892622,2.93740267,63349.0,63348.0,0.40981811]
[1719820893231,2.73740267,63349.0,63348.0,0.40981811]
[1719820893858,2.93740267,63349.0,63348.0,0.40981811]
[1719820894466,2.73740267,63349.0,63348.0,0.40981811]
[1719820895861,2.73639217,63349.0,63348.0,0.40981811]
[1719820896266,2.84182836,63349.0,63348.0,0.40981811]
[1719820896514,3.1364086,63349.0,63348.0,0.40981811]
[1719820898896,3.13638752,63349.0,63348.0,0.40981811]
[1719820899068,3.136305,63349.0,63348.0,0.40981811]
[1719820900128,3.231245,63349.0,63348.0,0.40981811]
[1719820902119,2.99141702,63349.0,63348.0,0.40981811]
[1719820902322,3.23144737,63349.0,63348.0,0.40981811]
[1719820903556,3.37270794,63349.0,63348.0,0.40981811]
[1719820904802,3.23144737,63349.0,63348.0,0.40981811]
[1719820906916,3.23144737,63349.0,63348.0,0.40781811]
[1719820908456,2.99141702,63349.0,63348.0,0.40781811]
[1719820908664,3.23122476,63349.0,63348.0,0.40781811]
[1719820911720,3.23132413,63349.0,63348.0,0.40781811]
[1719820913649,3.08600439,63349.0,63348.0,0.40781811]
[1719820913851,3.23116393,63349.0,63348.0,0.40781811]
[1719820914538,3.15746393,63349.0,63348.0,0.40781811]
[1719820914741,3.23116393,63349.0,63348.0,0.40781811]
[1719820914951,3.23160972,63349.0,63348.0,0.40781811]
[1719820915358,3.24525249,63349.0,63348.0,0.40781811]
[1719820915571,3.39088436,63349.0,63348.0,0.40781811]
[1719820917583,3.23160994,63349.0,63348.0,0.40781811]
[1719820917992,3.23167284,63349.0,63348.0,0.40781811]
[1719820920799,3.23228567,63349.0,63348.0,0.40781811]